[Event "WJCC U20 Girls 2019"]
[Site "New Delhi"]
[Date "2019.10.15"]
[Round "1.25"]
[White "Alinasab, Mobina"]
[Black "Fretel, Liza"]
[Result "1-0"]
[ECO "B56"]
[WhiteElo "2239"]
[BlackElo "1877"]
[Annotator "NA"]
[PlyCount "89"]
[EventDate "2019.10.15"]
[EventType "swiss"]
[EventCountry "IND"]
[SourceTitle "playchess.com"]
[Source "ChessBase"]
[SourceQuality "1"]
[TimeControl "40/5400+30:1800+30"]

1. e4 {[%emt 0:00:00]} c5 {[%emt 0:00:00]} 2. Nf3 {[%emt 0:00:00]} Nc6 {[%emt 0:00:00]} 3. Nc3 {[%emt 0:00:00]} d6 {[%emt 0:00:29]} 4. d4 {[%emt 0:00:00]} cxd4 {[%emt 0:00:10]} 5. Nxd4 {[%emt 0:00:01]} Nf6 {[%emt 0:00:29]} 6. g3 {[%emt 0:00:33]} g6 {[%emt 0:00:52]} 7. Bg2 {[%emt 0:00:34]} Nxd4 {[%emt 0:00:22]} 8. Qxd4 {[%emt 0:00:23]} Bg7 {[%emt 0:00:24]} 9. O-O {[%emt 0:03:17]} O-O {[%emt 0:00:26]} 10. Qd3 {[%emt 0:01:17]} Nd7 {[%emt 0:04:20]} 11. f4 {[%emt 0:05:16]} Nc5 {[%emt 0:01:28]} 12. Qe3 {[%emt 0:03:01]} Bd7 {[%emt 0:06:53]} 13. e5 {[%emt 0:08:09]} Ne6 {[%emt 0:05:04]} 14. Bxb7 {[%emt 0:02:30]} dxe5 {[%emt 0:04:52]} 15. fxe5 {[%emt 0:01:05]} Bxe5 {[%emt 0:04:32]} 16. Rd1 {[%emt 0:04:00]} Bc7 {[%emt 0:16:25]} 17. Qe2 {[%emt 0:20:20]} Rb8 {[%emt 0:04:19]} 18. Bg2 {[%emt 0:03:47]} Qc8 {[%emt 0:05:14]} 19. Nd5 {[%emt 0:03:11]} Bd6 {[%emt 0:00:55]} 20. c4 {[%emt 0:02:46]} Re8 {[%emt 0:06:00]} 21. b3 {[%emt 0:01:14]} a5 {[%emt 0:02:55]} 22. Be3 {[%emt 0:07:44]} Bc5 {[%emt 0:05:54]} 23. Kh1 {[%emt 0:01:12]} Bxe3 {[%emt 0:01:57]} 24. Qxe3 {[%emt 0:00:47]} Qc5 {[%emt 0:02:11]} 25. Qc3 {[%emt 0:02:19]} Nf8 {[%emt 0:06:11]} 26. a3 {[%emt 0:02:36]} Bg4 {[%emt 0:04:02]} 27. b4 {[%emt 0:03:32]} Qc8 {[%emt 0:00:41]} 28. Re1 {[%emt 0:03:35]} Be6 {[%emt 0:00:17]} 29. c5 {[%emt 0:01:49]} Bxd5 {[%emt 0:03:40]} 30. Bxd5 {[%emt 0:00:06]} e6 {[%emt 0:01:34]} 31. Bg2 {[%emt 0:00:11]} Qc7 {[%emt 0:01:06]} 32. bxa5 {[%emt 0:06:29]} Rb5 {[%emt 0:01:45]} 33. c6 {[%emt 0:04:28]} Rxa5 {[%emt 0:01:19]} 34. Reb1 {[%emt 0:02:05]} Ra7 {[%emt 0:01:51]} 35. Qf6 {[%emt 0:02:46]} e5 {[%emt 0:04:19]} 36. Be4 {[%emt 0:00:35]} Ne6 {[%emt 0:00:39]} 37. Rb5 {[%emt 0:04:56]} Nd8 {[%emt 0:02:18]} 38. Rd1 {[%emt 0:01:47]} Rxa3 {[%emt 0:02:06]} 39. Rd7 {[%emt 0:00:20]} Qc8 {[%emt 0:00:22]} 40. Bd5 {[%emt 0:00:35]} Rf8 {[%emt 0:00:31]} 41. Rbb7 {[%emt 0:30:17]} Ne6 {[%emt 0:03:43]} 42. Qxe6 {[%emt 0:00:00]} Qxb7 {[%emt 0:01:50]} 43. Qxf7+ {[%emt 0:00:00]} Rxf7 {[%emt 0:00:08]} 44. Bxf7+ {[%emt 0:00:00]} Kg7 {[%emt 0:00:52]} 45. cxb7 {[%emt 0:00:00]} 1-0

[Event "WJCC U20 Girls 2019"]
[Site "New Delhi"]
[Date "2019.10.15"]
[Round "1.27"]
[White "Diakonova, Ekaterina"]
[Black "Ghosh Samriddhaa"]
[Result "*"]
[ECO "C12"]
[WhiteElo "2231"]
[BlackElo "1867"]
[Annotator "NA"]
[PlyCount "85"]
[EventDate "2019.10.15"]
[EventType "swiss"]
[EventCountry "IND"]
[SourceTitle "playchess.com"]
[Source "ChessBase"]
[SourceQuality "1"]
[TimeControl "40/5400+30:1800+30"]

1. e4 {[%emt 0:00:00]} e6 {[%emt 0:00:00]} 2. d4 {[%emt 0:00:00]} d5 {[%emt 0:00:00]} 3. Nc3 {[%emt 0:00:00]} Nf6 {[%emt 0:00:13]} 4. Bg5 {[%emt 0:00:00]} Bb4 {[%emt 0:00:54]} 5. e5 {[%emt 0:04:51]} h6 {[%emt 0:00:24]} 6. Bd2 {[%emt 0:12:14]} Bxc3 {[%emt 0:00:31]} 7. Bxc3 {[%emt 0:01:09]} Ne4 {[%emt 0:00:23]} 8. Ne2 {[%emt 0:05:45]} O-O {[%emt 0:07:12]} 9. Bb4 {[%emt 0:07:02]} c5 {[%emt 0:06:42]} 10. Ba3 {[%emt 0:03:26]} b5 {[%emt 0:25:38]} 11. dxc5 {[%emt 0:20:40]} Nc6 {[%emt 0:07:39]} 12. Nd4 {[%emt 0:04:50]} Qh4 {[%emt 0:18:38]} 13. g3 {[%emt 0:00:45]} Nxg3 {[%emt 0:00:45]} 14. hxg3 {[%emt 0:02:22]} Qe4+ {[%emt 0:10:15]} 15. Qe2 {[%emt 0:00:39]} Qxd4 {[%emt 0:00:28]} 16. c3 {[%emt 0:07:24]} Qa4 {[%emt 0:10:33]} 17. Rh4 {[%emt 0:05:39]} Qa5 {[%emt 0:01:51]} 18. Qxb5 {[%emt 0:03:36]} Qxb5 {[%emt 0:01:31]} 19. Bxb5 {[%emt 0:00:05]} Nxe5 {[%emt 0:00:07]} 20. Ra4 {[%emt 0:02:36]} f5 {[%emt 0:04:37]} 21. c6 {[%emt 0:11:21]} Rf7 {[%emt 0:00:29]} 22. Bd6 {[%emt 0:00:46]} Ng4 {[%emt 0:00:34]} 23. c4 {[%emt 0:02:26]} dxc4 {[%emt 0:01:06]} 24. Bxc4 {[%emt 0:00:44]} Nf6 {[%emt 0:00:38]} 25. O-O-O {[%emt 0:01:31]} Ne4 {[%emt 0:00:32]} 26. f3 {[%emt 0:00:55]} Nxd6 {[%emt 0:00:29]} 27. Rxd6 {[%emt 0:00:02]} Rc7 {[%emt 0:00:21]} 28. b4 {[%emt 0:01:49]} Kf7 {[%emt 0:00:31]} 29. b5 {[%emt 0:00:04]} Ke7 {[%emt 0:00:11]} 30. Rd3 {[%emt 0:01:04]} Rb8 {[%emt 0:00:51]} 31. Rb3 {[%emt 0:00:44]} Kd6 {[%emt 0:00:37]} 32. f4 {[%emt 0:00:41]} g5 {[%emt 0:00:30]} 33. Kc2 {[%emt 0:00:32]} Rg7 {[%emt 0:00:39]} 34. Rba3 {[%emt 0:00:35]} gxf4 {[%emt 0:00:31]} 35. gxf4 {[%emt 0:00:04]} a6 {[%emt 0:00:32]} 36. Rd3+ {[%emt 0:00:43]} Kc5 {[%emt 0:00:21]} 37. bxa6 {[%emt 0:00:15]} Kxc6 {[%emt 0:00:18]} 38. Rd8 {[%emt 0:01:03]} Kc7 39. Rh8 {[%emt 0:00:09]} Rg2+ {[%emt 0:01:09]} 40. Kc3 {[%emt 0:00:10]} Rf2 {[%emt 0:00:32]} 41. a7 {[%emt 0:30:36]} Rf3+ {[%emt 0:27:04]} 42. Bd3 {[%emt 0:00:00]} Ra8 {[%emt 0:03:00]} 43. Rc4+ {[%emt 0:00:00]} *

[Event "WJCC U20 Girls 2019"]
[Site "New Delhi"]
[Date "2019.10.15"]
[Round "1.29"]
[White "Mrudul Dehankar"]
[Black "Muratova, Saltanat"]
[Result "1-0"]
[ECO "B33"]
[WhiteElo "2227"]
[BlackElo "1855"]
[Annotator "NA"]
[PlyCount "31"]
[EventDate "2019.10.15"]
[EventType "swiss"]
[EventCountry "IND"]
[SourceTitle "playchess.com"]
[Source "ChessBase"]
[SourceQuality "1"]
[TimeControl "40/5400+30:1800+30"]

1. e4 {[%emt 0:00:00]} c5 {[%emt 0:00:00]} 2. Nf3 {[%emt 0:00:00]} Nc6 {[%emt 0:00:19]} 3. d4 {[%emt 0:00:00]} cxd4 {[%emt 0:00:37]} 4. Nxd4 {[%emt 0:00:00]} Nf6 {[%emt 0:00:35]} 5. Nc3 {[%emt 0:00:10]} e6 {[%emt 0:01:08]} 6. Ndb5 {[%emt 0:00:36]} a6 {[%emt 0:04:05]} 7. Nd6+ {[%emt 0:01:42]} Bxd6 {[%emt 0:00:17]} 8. Qxd6 {[%emt 0:00:17]} Qa5 {[%emt 0:02:22]} 9. Bd3 {[%emt 0:06:18]} h6 {[%emt 0:11:19]} 10. O-O {[%emt 0:06:55]} b5 {[%emt 0:02:05]} 11. Re1 {[%emt 0:18:23]} b4 {[%emt 0:12:13]} 12. Nd5 {[%emt 0:03:56]} Nxd5 {[%emt 0:16:35]} 13. exd5 {[%emt 0:00:13]} Ne7 {[%emt 0:03:08]} 14. Be4 {[%emt 0:06:36]} Qb5 {[%emt 0:13:56]} 15. dxe6 {[%emt 0:01:30]} Rb8 {[%emt 0:04:23]} 16. exd7+ {[%emt 0:01:10]} 1-0

[Event "WJCC U20 Girls 2019"]
[Site "New Delhi"]
[Date "2019.10.15"]
[Round "1.30"]
[White "Aouachria, Marwa"]
[Black "Kiolbasa, Oliwia"]
[Result "0-1"]
[ECO "C60"]
[WhiteElo "1839"]
[BlackElo "2223"]
[Annotator "NA"]
[PlyCount "52"]
[EventDate "2019.10.15"]
[EventType "swiss"]
[EventCountry "IND"]
[SourceTitle "playchess.com"]
[Source "ChessBase"]
[SourceQuality "1"]
[TimeControl "40/5400+30:1800+30"]

1. e4 {[%emt 0:00:00]} e5 {[%emt 0:00:00]} 2. Nf3 {[%emt 0:00:00]} Nc6 {[%emt 0:00:00]} 3. Bb5 {[%emt 0:00:16]} Nge7 {[%emt 0:00:20]} 4. d4 {[%emt 0:02:32]} exd4 {[%emt 0:02:44]} 5. Nxd4 {[%emt 0:04:48]} Nxd4 {[%emt 0:00:27]} 6. Qxd4 {[%emt 0:00:06]} a6 {[%emt 0:02:15]} 7. Bc4 {[%emt 0:03:03]} b5 {[%emt 0:04:57]} 8. Bb3 {[%emt 0:04:05]} d6 {[%emt 0:00:22]} 9. c4 {[%emt 0:08:26]} c5 {[%emt 0:02:32]} 10. Qd3 {[%emt 0:04:05]} Rb8 {[%emt 0:02:41]} 11. Nc3 {[%emt 0:07:23]} Nc6 {[%emt 0:02:50]} 12. cxb5 {[%emt 0:08:31]} Ne5 {[%emt 0:01:11]} 13. Qe2 {[%emt 0:05:43]} axb5 {[%emt 0:04:03]} 14. Nxb5 {[%emt 0:09:52]} Qa5+ {[%emt 0:02:38]} 15. Nc3 {[%emt 0:00:50]} Rxb3 {[%emt 0:02:00]} 16. axb3 {[%emt 0:00:35]} Qxa1 {[%emt 0:00:15]} 17. O-O {[%emt 0:06:34]} Ba6 {[%emt 0:03:59]} 18. Nb5 {[%emt 0:00:03]} Qa5 {[%emt 0:00:14]} 19. Nc7+ {[%emt 0:00:16]} Qxc7 {[%emt 0:00:07]} 20. Qxa6 {[%emt 0:00:45]} Be7 {[%emt 0:00:15]} 21. f4 {[%emt 0:08:26]} Nc6 {[%emt 0:00:22]} 22. Qa8+ {[%emt 0:05:25]} Bd8 {[%emt 0:00:27]} 23. e5 {[%emt 0:05:50]} O-O {[%emt 0:05:02]} 24. exd6 {[%emt 0:00:13]} Qxd6 {[%emt 0:00:12]} 25. Be3 {[%emt 0:01:26]} Bf6 {[%emt 0:00:22]} 26. Qa3 {[%emt 0:00:24]} Bd4 {[%emt 0:00:23] Bc1 Qe5+} 0-1

[Event "WJCC U20 Girls 2019"]
[Site "New Delhi"]
[Date "2019.10.15"]
[Round "1.31"]
[White "Olde, Margareth"]
[Black "Rindhiya V"]
[Result "1-0"]
[ECO "A90"]
[WhiteElo "2205"]
[BlackElo "1817"]
[Annotator "NA"]
[PlyCount "91"]
[EventDate "2019.10.15"]
[EventType "swiss"]
[EventCountry "IND"]
[SourceTitle "playchess.com"]
[Source "ChessBase"]
[SourceQuality "1"]
[TimeControl "40/5400+30:1800+30"]

1. d4 {[%emt 0:00:00]} f5 {[%emt 0:00:00]} 2. c4 {[%emt 0:00:00]} Nf6 {[%emt 0:00:00]} 3. g3 {[%emt 0:00:05]} e6 {[%emt 0:00:00]} 4. Bg2 {[%emt 0:00:14]} c6 {[%emt 0:00:14]} 5. Nf3 {[%emt 0:01:01]} d5 {[%emt 0:00:13]} 6. O-O {[%emt 0:00:59]} Bd6 {[%emt 0:00:12]} 7. b3 {[%emt 0:02:54]} Qe7 {[%emt 0:00:18]} 8. Bb2 {[%emt 0:00:22]} O-O {[%emt 0:00:42]} 9. Ne5 {[%emt 0:02:56]} b6 {[%emt 0:20:43]} 10. Qc2 {[%emt 0:06:57]} Bb7 {[%emt 0:02:41]} 11. Nd2 {[%emt 0:10:06]} Nbd7 {[%emt 0:02:38]} 12. Rac1 {[%emt 0:03:49]} Rac8 {[%emt 0:00:29]} 13. e3 {[%emt 0:01:25]} Ne4 {[%emt 0:05:20]} 14. Ndf3 {[%emt 0:03:00]} Ndf6 {[%emt 0:01:01]} 15. Ne1 {[%emt 0:04:45]} c5 {[%emt 0:27:00]} 16. f3 {[%emt 0:10:48]} Ng5 {[%emt 0:00:14]} 17. Qf2 {[%emt 0:00:53]} Nf7 {[%emt 0:03:00]} 18. N1d3 {[%emt 0:03:24]} Rfd8 {[%emt 0:04:05]} 19. Rfe1 {[%emt 0:14:14]} Nd7 {[%emt 0:09:49]} 20. cxd5 {[%emt 0:03:33]} exd5 {[%emt 0:00:59]} 21. Bh3 {[%emt 0:02:29]} g6 {[%emt 0:04:49]} 22. Nxd7 {[%emt 0:01:56]} Qxd7 {[%emt 0:00:45]} 23. Ne5 {[%emt 0:01:32]} Qe7 {[%emt 0:04:27]} 24. f4 {[%emt 0:01:39]} b5 {[%emt 0:08:36]} 25. g4 {[%emt 0:03:24]} fxg4 {[%emt 0:01:05]} 26. Bxg4 {[%emt 0:02:43]} Rc7 {[%emt 0:00:27]} 27. Nxf7 {[%emt 0:02:30]} Qxf7 {[%emt 0:01:13]} 28. dxc5 {[%emt 0:02:57]} Bxc5 {[%emt 0:00:45]} 29. Qd2 {[%emt 0:06:19]} h5 {[%emt 0:01:13]} 30. Rxc5 {[%emt 0:04:01]} Rxc5 {[%emt 0:00:35]} 31. Qd4 {[%emt 0:00:20]} Kh7 {[%emt 0:00:28]} 32. Qxc5 {[%emt 0:01:46]} hxg4 {[%emt 0:00:03]} 33. Qxb5 {[%emt 0:01:45]} a6 {[%emt 0:01:53]} 34. Qe2 {[%emt 0:00:53]} Qf5 {[%emt 0:00:26]} 35. Qf2 {[%emt 0:01:09]} Re8 {[%emt 0:00:35]} 36. Bd4 {[%emt 0:00:25]} Qh5 {[%emt 0:00:27]} 37. Rc1 {[%emt 0:00:25]} Rc8 {[%emt 0:00:30]} 38. Rxc8 {[%emt 0:00:30]} Bxc8 {[%emt 0:00:01]} 39. Qc2 {[%emt 0:00:15]} Qf5 {[%emt 0:00:03]} 40. Qc7+ {[%emt 0:00:14]} Bd7 {[%emt 0:00:25]} 41. Qd8 {[%emt 0:11:54]} Qb1+ {[%emt 0:00:33]} 42. Kg2 {[%emt 0:01:57]} Qe4+ {[%emt 0:00:36]} 43. Kf2 {[%emt 0:00:53]} Qf3+ {[%emt 0:10:08]} 44. Ke1 {[%emt 0:00:10]} Qh1+ {[%emt 0:00:05]} 45. Kd2 {[%emt 0:00:08]} Qxh2+ {[%emt 0:00:36]} 46. Kc3 {[%emt 0:00:11]} 1-0

[Event "WJCC U20 Girls 2019"]
[Site "New Delhi"]
[Date "2019.10.15"]
[Round "1.32"]
[White "Bhagyashree Patil"]
[Black "Ulziikhishigjargal, Ochirkhuyag"]
[Result "1-0"]
[ECO "C54"]
[WhiteElo "1802"]
[BlackElo "2194"]
[Annotator "NA"]
[PlyCount "98"]
[EventDate "2019.10.15"]
[EventType "swiss"]
[EventCountry "IND"]
[SourceTitle "playchess.com"]
[Source "ChessBase"]
[SourceQuality "1"]
[TimeControl "40/5400+30:1800+30"]

1. e4 {[%emt 0:00:00]} e5 {[%emt 0:00:00]} 2. Nf3 {[%emt 0:00:08]} Nc6 {[%emt 0:00:00]} 3. Bc4 {[%emt 0:00:13]} Bc5 {[%emt 0:00:04]} 4. c3 {[%emt 0:00:13]} Nf6 {[%emt 0:00:32]} 5. d3 {[%emt 0:00:09]} d6 {[%emt 0:00:12]} 6. O-O {[%emt 0:01:52]} a6 {[%emt 0:01:03]} 7. Bb3 {[%emt 0:00:49]} Ba7 {[%emt 0:01:17]} 8. Nbd2 {[%emt 0:05:04]} O-O {[%emt 0:00:35]} 9. h3 {[%emt 0:06:21]} h6 {[%emt 0:02:23]} 10. Re1 {[%emt 0:03:04]} Be6 {[%emt 0:08:26]} 11. Nf1 {[%emt 0:02:06]} Nh5 {[%emt 0:25:55]} 12. Be3 {[%emt 0:12:32]} Nf4 {[%emt 0:03:47]} 13. d4 {[%emt 0:05:33]} Bxb3 {[%emt 0:06:21]} 14. axb3 {[%emt 0:05:18]} Ng6 {[%emt 0:10:47]} 15. Ng3 {[%emt 0:02:53]} Re8 {[%emt 0:02:12]} 16. b4 {[%emt 0:03:41]} Nh4 {[%emt 0:10:52]} 17. d5 {[%emt 0:07:57]} Nxf3+ {[%emt 0:01:25]} 18. Qxf3 {[%emt 0:00:37]} Ne7 {[%emt 0:00:04]} 19. Nh5 {[%emt 0:07:53]} Bxe3 {[%emt 0:02:54]} 20. Rxe3 {[%emt 0:01:57]} Ng6 {[%emt 0:00:01]} 21. c4 {[%emt 0:03:44]} Qg5 {[%emt 0:02:33]} 22. Qg4 {[%emt 0:08:08]} Qxg4 {[%emt 0:02:55]} 23. hxg4 {[%emt 0:00:03]} Nf8 {[%emt 0:01:12]} 24. Rea3 {[%emt 0:02:18]} Rab8 {[%emt 0:02:59]} 25. Ng3 {[%emt 0:02:18]} g6 {[%emt 0:00:19]} 26. Nf1 {[%emt 0:00:52]} Nd7 {[%emt 0:01:12]} 27. Ne3 {[%emt 0:00:31]} Kf8 {[%emt 0:00:41]} 28. Kf1 {[%emt 0:00:26]} Ke7 {[%emt 0:00:05]} 29. Ke2 Rh8 {[%emt 0:00:14]} 30. Rh1 {[%emt 0:00:50]} Nf6 {[%emt 0:01:41]} 31. f3 {[%emt 0:02:16]} h5 {[%emt 0:00:17]} 32. gxh5 {[%emt 0:02:52]} Nxh5 {[%emt 0:00:05]} 33. Kf2 {[%emt 0:00:42]} Nf6 {[%emt 0:03:37]} 34. Rc1 {[%emt 0:02:49]} Nd7 {[%emt 0:04:47]} 35. c5 {[%emt 0:01:06]} Rhc8 {[%emt 0:00:40]} 36. Nc4 {[%emt 0:02:10]} dxc5 {[%emt 0:02:37]} 37. bxc5 {[%emt 0:00:07]} Nxc5 {[%emt 0:00:10]} 38. Nxe5 {[%emt 0:00:12]} Nd7 {[%emt 0:00:02]} 39. Nxd7 {[%emt 0:04:42]} Kxd7 {[%emt 0:00:01]} 40. Ke3 {[%emt 0:00:32]} Rh8 {[%emt 0:01:24]} 41. Rac3 {[%emt 0:30:41]} Rbc8 {[%emt 0:30:06]} 42. Rb3 {[%emt 0:00:14]} b6 {[%emt 0:00:30]} 43. Rbc3 {[%emt 0:02:48]} Rh2 {[%emt 0:03:14]} 44. Kf2 {[%emt 0:00:11]} Rhh8 {[%emt 0:00:16]} 45. Rc6 {[%emt 0:00:14]} a5 {[%emt 0:00:22]} 46. Ke3 {[%emt 0:03:02]} Rhg8 {[%emt 0:00:00]} 47. f4 {[%emt 0:00:00]} Rge8 {[%emt 0:00:00]} 48. R1c2 {[%emt 0:00:00]} Rh8 49. e5 {[%emt 0:00:00]} Rhe8 {[%emt 0:00:00]} 1-0

[Event "WJCC U20 Girls 2019"]
[Site "New Delhi"]
[Date "2019.10.15"]
[Round "1.33"]
[White "Aakanksha Hagawane"]
[Black "Noshin, Anjum"]
[Result "1-0"]
[ECO "C28"]
[WhiteElo "2181"]
[BlackElo "1793"]
[Annotator "NA"]
[PlyCount "51"]
[EventDate "2019.10.15"]
[EventType "swiss"]
[EventCountry "IND"]
[SourceTitle "playchess.com"]
[Source "ChessBase"]
[SourceQuality "1"]
[TimeControl "40/5400+30:1800+30"]

1. e4 {[%emt 0:00:00]} e5 {[%emt 0:00:00]} 2. Bc4 {[%emt 0:00:00]} Nc6 {[%emt 0:01:21]} 3. Nc3 {[%emt 0:00:30]} Nf6 {[%emt 0:01:59]} 4. d3 {[%emt 0:00:33]} Bc5 {[%emt 0:02:30]} 5. f4 {[%emt 0:01:14]} exf4 {[%emt 0:06:47]} 6. Bxf4 {[%emt 0:00:39]} d6 {[%emt 0:01:10]} 7. Nf3 {[%emt 0:02:25]} Bg4 {[%emt 0:06:13]} 8. Qd2 {[%emt 0:01:50]} Nd4 {[%emt 0:09:52]} 9. Nxd4 {[%emt 0:07:46]} Bxd4 {[%emt 0:02:57]} 10. h3 {[%emt 0:01:27]} Bd7 {[%emt 0:07:23]} 11. O-O-O {[%emt 0:04:39]} Bc6 {[%emt 0:14:20]} 12. Rhf1 {[%emt 0:03:24]} Qe7 {[%emt 0:03:10]} 13. g4 {[%emt 0:07:36]} h6 {[%emt 0:02:58]} 14. Ne2 {[%emt 0:07:25]} Bb6 {[%emt 0:07:54]} 15. Ng3 {[%emt 0:03:18]} O-O-O {[%emt 0:04:25]} 16. Nf5 {[%emt 0:03:07]} Qd7 {[%emt 0:00:50]} 17. Nxg7 {[%emt 0:04:55]} d5 {[%emt 0:01:35]} 18. exd5 {[%emt 0:04:40]} Nxd5 {[%emt 0:01:30]} 19. Kb1 {[%emt 0:01:44]} Rh7 {[%emt 0:13:09]} 20. Nh5 {[%emt 0:08:46]} Qe7 {[%emt 0:05:48]} 21. Bxh6 {[%emt 0:05:58]} Rd6 {[%emt 0:03:25]} 22. Bg5 {[%emt 0:01:52]} f6 {[%emt 0:00:43]} 23. Bxd5 {[%emt 0:01:16]} fxg5 {[%emt 0:00:30]} 24. Bxc6 {[%emt 0:02:53]} Rxc6 {[%emt 0:00:27]} 25. Rde1 {[%emt 0:00:25]} Qc5 {[%emt 0:00:55]} 26. Rf5 {[%emt 0:00:39]} 1-0

[Event "WJCC U20 Girls 2019"]
[Site "New Delhi"]
[Date "2019.10.15"]
[Round "1.34"]
[White "Jayaweera, Sayuni Gihansa"]
[Black "Pychova, Nela"]
[Result "0-1"]
[ECO "E16"]
[WhiteElo "1788"]
[BlackElo "2178"]
[Annotator "NA"]
[PlyCount "108"]
[EventDate "2019.10.15"]
[EventType "swiss"]
[EventCountry "IND"]
[SourceTitle "playchess.com"]
[Source "ChessBase"]
[SourceQuality "1"]
[TimeControl "40/5400+30:1800+30"]

1. d4 {[%emt 0:00:00]} Nf6 {[%emt 0:00:00]} 2. c4 {[%emt 0:00:00]} e6 {[%emt 0:00:00]} 3. Nf3 {[%emt 0:00:19]} Bb4+ {[%emt 0:01:49]} 4. Bd2 {[%emt 0:00:30]} Qe7 {[%emt 0:01:04]} 5. g3 {[%emt 0:01:35]} Nc6 {[%emt 0:06:02]} 6. Nc3 {[%emt 0:02:04]} Bxc3 {[%emt 0:14:35]} 7. Bxc3 {[%emt 0:00:25]} Ne4 {[%emt 0:08:11]} 8. Rc1 {[%emt 0:01:43]} d5 {[%emt 0:03:50]} 9. Bg2 {[%emt 0:01:51]} O-O {[%emt 0:03:59]} 10. O-O {[%emt 0:01:26]} Rd8 {[%emt 0:03:23]} 11. c5 {[%emt 0:05:17]} a5 {[%emt 0:02:43]} 12. Qd3 {[%emt 0:04:01]} Bd7 {[%emt 0:03:18]} 13. Rfe1 {[%emt 0:02:17]} Qf6 {[%emt 0:03:04]} 14. Qe3 {[%emt 0:05:24]} Be8 {[%emt 0:10:17]} 15. Ne5 {[%emt 0:06:55]} Nxc3 {[%emt 0:06:15]} 16. Rxc3 {[%emt 0:02:40]} Nxe5 {[%emt 0:02:05]} 17. Qxe5 {[%emt 0:00:57]} Qxe5 {[%emt 0:00:32]} 18. dxe5 {[%emt 0:00:02]} a4 {[%emt 0:01:28]} 19. e3 {[%emt 0:02:51]} Ra5 {[%emt 0:02:35]} 20. f4 {[%emt 0:02:42]} Kf8 {[%emt 0:04:07]} 21. Rd1 {[%emt 0:01:30]} Ke7 {[%emt 0:00:58]} 22. e4 {[%emt 0:04:44]} d4 {[%emt 0:03:38]} 23. Rc4 {[%emt 0:01:01]} d3 {[%emt 0:07:24]} 24. Rd2 {[%emt 0:02:19]} Bb5 {[%emt 0:02:37]} 25. Rc3 {[%emt 0:05:11]} Kd7 {[%emt 0:02:15]} 26. Kf2 {[%emt 0:02:54]} Kc6 {[%emt 0:00:35]} 27. Bf1 {[%emt 0:02:11]} Ba6 {[%emt 0:01:08]} 28. Bxd3 {[%emt 0:00:41]} Bxd3 {[%emt 0:00:30]} 29. Rdxd3 {[%emt 0:00:22]} Rxd3 {[%emt 0:00:24]} 30. Rxd3 {[%emt 0:00:01]} Rxc5 {[%emt 0:00:23]} 31. Rd2 {[%emt 0:01:11]} a3 {[%emt 0:03:42]} 32. b3 {[%emt 0:01:21]} Rc1 {[%emt 0:00:53]} 33. Ke3 {[%emt 0:00:14]} Rb1 {[%emt 0:01:25]} 34. Rc2+ {[%emt 0:02:11]} Kb6 {[%emt 0:00:49]} 35. Kd3 {[%emt 0:00:12]} Rd1+ {[%emt 0:00:40]} 36. Ke2 {[%emt 0:04:57]} Rb1 {[%emt 0:00:34]} 37. Kd3 {[%emt 0:00:02]} c5 {[%emt 0:00:37]} 38. Kc3 {[%emt 0:00:58]} Kc6 {[%emt 0:00:31]} 39. Rd2 {[%emt 0:00:23]} Rc1+ {[%emt 0:00:07]} 40. Rc2 {[%emt 0:00:56]} Rb1 {[%emt 0:00:53]} 41. Rd2 {[%emt 0:30:07]} Ra1 {[%emt 0:09:19]} 42. b4 {[%emt 0:00:00]} Rc1+ {[%emt 0:00:53]} 43. Kb3 {[%emt 0:00:00]} Rb1+ {[%emt 0:00:48]} 44. Kxa3 {[%emt 0:00:00]} Rxb4 {[%emt 0:01:52]} 45. Re2 {[%emt 0:00:00]} Rb1 {[%emt 0:00:34]} 46. f5 {[%emt 0:00:00]} c4 {[%emt 0:02:10]} 47. fxe6 {[%emt 0:00:00]} fxe6 {[%emt 0:00:28]} 48. Rd2 {[%emt 0:00:00]} Kc5 {[%emt 0:01:33]} 49. Rd7 {[%emt 0:00:00]} b5 {[%emt 0:00:28]} 50. Rxg7 {[%emt 0:00:00]} c3 {[%emt 0:04:31]} 51. Rxh7 {[%emt 0:00:00]} Kb6 52. Re7 {[%emt 0:00:00]} c2 {[%emt 0:01:54]} 53. Rxe6+ {[%emt 0:00:00]} Ka5 {[%emt 0:00:20]} 54. Rc6 {[%emt 0:00:00]} b4# {[%emt 0:00:09]} 0-1

[Event "WJCC U20 Girls 2019"]
[Site "New Delhi"]
[Date "2019.10.15"]
[Round "1.35"]
[White "Cervantes Landeiro, Thalia"]
[Black "Figueroa Bernal, Julia Dennis"]
[Result "1-0"]
[ECO "E11"]
[WhiteElo "2176"]
[BlackElo "1777"]
[Annotator "NA"]
[PlyCount "49"]
[EventDate "2019.10.15"]
[EventType "swiss"]
[EventCountry "IND"]
[SourceTitle "playchess.com"]
[Source "ChessBase"]
[SourceQuality "1"]
[TimeControl "40/5400+30:1800+30"]

1. d4 {[%emt 0:00:00]} e6 {[%emt 0:00:00]} 2. c4 {[%emt 0:00:00]} Nf6 {[%emt 0:00:00]} 3. Nf3 {[%emt 0:01:47]} Bb4+ {[%emt 0:00:32]} 4. Nbd2 {[%emt 0:00:13]} b6 {[%emt 0:01:01]} 5. a3 {[%emt 0:00:22]} Bxd2+ {[%emt 0:00:21]} 6. Qxd2 {[%emt 0:00:12]} Ne4 {[%emt 0:02:51]} 7. Qc2 {[%emt 0:00:43]} Bb7 {[%emt 0:00:31]} 8. e3 {[%emt 0:01:09]} d6 {[%emt 0:02:49]} 9. Be2 {[%emt 0:08:51]} Nd7 {[%emt 0:03:42]} 10. O-O {[%emt 0:08:21]} O-O {[%emt 0:04:58]} 11. b4 {[%emt 0:02:02]} f5 {[%emt 0:01:40]} 12. d5 {[%emt 0:01:30]} e5 {[%emt 0:09:37]} 13. Nd2 {[%emt 0:00:52]} Nxd2 {[%emt 0:07:39]} 14. Bxd2 {[%emt 0:00:14]} e4 {[%emt 0:04:11]} 15. f3 {[%emt 0:04:50]} Nf6 {[%emt 0:11:17]} 16. Bc3 {[%emt 0:11:22]} exf3 {[%emt 0:09:30]} 17. Rxf3 {[%emt 0:04:49]} Qe7 {[%emt 0:05:43]} 18. Raf1 {[%emt 0:05:33]} Ng4 {[%emt 0:05:04]} 19. e4 {[%emt 0:13:35]} Rae8 {[%emt 0:03:27]} 20. h3 {[%emt 0:03:33]} Nf6 {[%emt 0:02:00]} 21. e5 {[%emt 0:02:35]} Ne4 {[%emt 0:03:26]} 22. e6 {[%emt 0:11:35]} Nxc3 {[%emt 0:01:42]} 23. Qxc3 {[%emt 0:00:11]} g6 {[%emt 0:00:06]} 24. g4 {[%emt 0:03:15]} fxg4 {[%emt 0:02:43]} 25. Rf7 1-0